[Event "Titled Tuesday Blitz May 30 Early 2023"]
[White "Naroditsky, Daniel"]
[Black "Terletsky, Oleg"]
[WhiteFideId "2026961"]
[BlackFideId "14116774"]
[WhiteElo "2633"]
[BlackElo "2084"]
[Result "1-0"]
[Round "02"]
[TimeControl "180+2"]
[Date "2023.05.30"]
[WhiteClock "0:00:09"]
[BlackClock "0:00:00"]

1. e4 {[%clk 0:03:00]}  e5 {[%clk 0:02:57]} 2. Nf3 {[%clk 0:02:59]}  Nc6 {[%clk 0:02:57]} 3. Bb5 {[%clk 0:03:00]}  a6 {[%clk 0:02:57]} 4. Ba4 {[%clk 0:03:00]}  Nf6 {[%clk 0:02:56]} 5. O-O {[%clk 0:03:01]}  Be7 {[%clk 0:02:55]} 6. d3 {[%clk 0:02:58]}  b5 {[%clk 0:02:56]} 7. Bb3 {[%clk 0:02:59]}  d6 {[%clk 0:02:56]} 8. a3 {[%clk 0:02:58]}  O-O {[%clk 0:02:55]} 9. Nc3 {[%clk 0:02:58]}  Bg4 {[%clk 0:02:55]} 10. Be3 {[%clk 0:02:58]}  Nd4 {[%clk 0:02:56]} 11. Bxd4 {[%clk 0:02:58]}  exd4 {[%clk 0:02:56]} 12. Nd5 {[%clk 0:02:59]}  c5 {[%clk 0:02:53]} 13. h3 {[%clk 0:02:56]}  Be6 {[%clk 0:02:53]} 14. Nf4 {[%clk 0:02:50]}  Bxb3 {[%clk 0:02:37]} 15. cxb3 {[%clk 0:02:51]}  d5 {[%clk 0:02:21]} 16. e5 {[%clk 0:02:49]}  Ne8 {[%clk 0:02:20]} 17. b4 {[%clk 0:02:46]}  cxb4 {[%clk 0:02:03]} 18. Nxd4 {[%clk 0:02:36]}  bxa3 {[%clk 0:01:56]} 19. bxa3 {[%clk 0:02:16]}  Bg5 {[%clk 0:01:48]} 20. Qg4 {[%clk 0:02:10]}  Bxf4 {[%clk 0:01:46]} 21. Qxf4 {[%clk 0:02:11]}  Nc7 {[%clk 0:01:45]} 22. Nf5 {[%clk 0:02:01]}  Ne6 {[%clk 0:01:41]} 23. Qf3 {[%clk 0:02:00]}  Rc8 {[%clk 0:01:29]} 24. Rac1 {[%clk 0:01:58]}  Qg5 {[%clk 0:01:25]} 25. Rxc8 {[%clk 0:01:52]}  Rxc8 {[%clk 0:01:26]} 26. h4 {[%clk 0:01:50]}  Qd8 {[%clk 0:01:18]} 27. Nd6 {[%clk 0:01:50]}  Rc7 {[%clk 0:01:17]} 28. Qxd5 {[%clk 0:01:44]}  Qxh4 {[%clk 0:01:04]} 29. Qa8+ {[%clk 0:01:24]}  Qd8 {[%clk 0:01:04]} 30. Qe4 {[%clk 0:01:23]}  g6 {[%clk 0:00:53]} 31. f4 {[%clk 0:01:21]}  Rc2 {[%clk 0:00:43]} 32. f5 {[%clk 0:01:15]}  Ng5 {[%clk 0:00:31]} 33. Qd5 {[%clk 0:01:14]}  Qb6+ {[%clk 0:00:27]} 34. Kh2 {[%clk 0:01:02]}  Qe3 {[%clk 0:00:23]} 35. fxg6 {[%clk 0:00:38]}  Qh3+ {[%clk 0:00:22]} 36. Kg1 {[%clk 0:00:38]}  Qe3+ {[%clk 0:00:22]} 37. Kh1 {[%clk 0:00:39]}  hxg6 {[%clk 0:00:08]} 38. Nxf7 {[%clk 0:00:37]}  Kg7 {[%clk 0:00:05]} 39. Nxg5 {[%clk 0:00:29]}  Qxg5 {[%clk 0:00:05]} 40. Qf7+ {[%clk 0:00:29]}  Kh6 {[%clk 0:00:05]} 41. Qf8+ {[%clk 0:00:29]}  Kh5 {[%clk 0:00:06]} 42. Qh8+ {[%clk 0:00:28]}  Qh6 {[%clk 0:00:06]} 43. Qxh6+ {[%clk 0:00:24]}  Kxh6 {[%clk 0:00:06]} 44. Rf6 {[%clk 0:00:18]}  Kg5 {[%clk 0:00:02]} 45. Rxa6 {[%clk 0:00:16]}  Re2 {[%clk 0:00:01]} 46. d4 {[%clk 0:00:16]}  Kf4 {[%clk 0:00:02]} 47. Rxg6 {[%clk 0:00:12]}  Rd2 {[%clk 0:00:00]} 48. Rd6 {[%clk 0:00:09]} 1-0


[Site "https://www.chess.com"]

[Event "Titled Tuesday Blitz May 30 Early 2023"]
[White "Tologon tegin, Semetei"]
[Black "Pranav, V"]
[WhiteFideId "13800574"]
[BlackFideId "25060783"]
[WhiteElo "2247"]
[BlackElo "2515"]
[Result "0-1"]
[Round "02"]
[TimeControl "180+2"]
[Date "2023.05.30"]
[WhiteClock "0:00:00"]
[BlackClock "0:00:17"]

1. e4 {[%clk 0:02:50]}  e5 {[%clk 0:02:58]} 2. Nf3 {[%clk 0:02:47]}  Nc6 {[%clk 0:02:57]} 3. Bb5 {[%clk 0:02:43]}  a6 {[%clk 0:02:57]} 4. Ba4 {[%clk 0:02:44]}  Nf6 {[%clk 0:02:56]} 5. d3 {[%clk 0:02:41]}  d6 {[%clk 0:02:56]} 6. c4 {[%clk 0:02:39]}  g6 {[%clk 0:02:55]} 7. h3 {[%clk 0:02:38]}  Bg7 {[%clk 0:02:56]} 8. Nc3 {[%clk 0:02:39]}  O-O {[%clk 0:02:56]} 9. O-O {[%clk 0:02:38]}  h6 {[%clk 0:02:56]} 10. Be3 {[%clk 0:02:37]}  Kh7 {[%clk 0:02:55]} 11. d4 {[%clk 0:02:31]}  exd4 {[%clk 0:02:55]} 12. Nxd4 {[%clk 0:02:32]}  Ne5 {[%clk 0:02:55]} 13. Qe2 {[%clk 0:02:23]}  c6 {[%clk 0:02:43]} 14. Rad1 {[%clk 0:02:18]}  b5 {[%clk 0:02:40]} 15. Bb3 {[%clk 0:01:51]}  b4 {[%clk 0:02:38]} 16. Na4 {[%clk 0:01:26]}  c5 {[%clk 0:02:30]} 17. Nf3 {[%clk 0:01:26]}  Qe7 {[%clk 0:02:23]} 18. Nb6 {[%clk 0:01:08]}  Rb8 {[%clk 0:02:19]} 19. Nxc8 {[%clk 0:01:07]}  Rbxc8 {[%clk 0:02:19]} 20. Nxe5 {[%clk 0:01:06]}  Qxe5 {[%clk 0:02:19]} 21. f3 {[%clk 0:01:07]}  Nh5 {[%clk 0:02:18]} 22. Qd2 {[%clk 0:00:56]}  Rcd8 {[%clk 0:02:13]} 23. Rb1 {[%clk 0:00:51]}  g5 {[%clk 0:02:01]} 24. Ba4 {[%clk 0:00:49]}  Nf4 {[%clk 0:02:00]} 25. Bc6 {[%clk 0:00:45]}  Bf6 {[%clk 0:01:40]} 26. Rfd1 {[%clk 0:00:44]}  Rg8 {[%clk 0:01:37]} 27. b3 {[%clk 0:00:36]}  h5 {[%clk 0:01:32]} 28. Bd5 {[%clk 0:00:26]}  Rg7 {[%clk 0:01:30]} 29. Qf2 {[%clk 0:00:23]}  Qe7 {[%clk 0:01:27]} 30. Rd2 {[%clk 0:00:21]}  Be5 {[%clk 0:01:27]} 31. Rbd1 {[%clk 0:00:20]}  Rdg8 {[%clk 0:01:26]} 32. Qf1 {[%clk 0:00:13]}  Qf6 {[%clk 0:01:21]} 33. g3 {[%clk 0:00:13]}  Ng6 {[%clk 0:01:00]} 34. Rg2 {[%clk 0:00:12]}  a5 {[%clk 0:00:58]} 35. Qe2 {[%clk 0:00:10]}  h4 {[%clk 0:00:58]} 36. g4 {[%clk 0:00:10]}  Bf4 {[%clk 0:00:56]} 37. Bxf4 {[%clk 0:00:10]}  Nxf4 {[%clk 0:00:56]} 38. Qd2 {[%clk 0:00:10]}  Nxh3+ {[%clk 0:00:51]} 39. Kh1 {[%clk 0:00:10]}  Qe5 {[%clk 0:00:42]} 40. Qd3 {[%clk 0:00:09]}  Nf4 {[%clk 0:00:41]} 41. Qc2 {[%clk 0:00:09]}  Nxg2 {[%clk 0:00:41]} 42. Qxg2 {[%clk 0:00:10]}  Rf8 {[%clk 0:00:41]} 43. Bc6 {[%clk 0:00:10]}  Rg6 {[%clk 0:00:40]} 44. Bd7 {[%clk 0:00:08]}  Kg7 {[%clk 0:00:24]} 45. Bf5 {[%clk 0:00:07]}  Rf6 {[%clk 0:00:23]} 46. Rd5 {[%clk 0:00:06]}  Qf4 {[%clk 0:00:24]} 47. Qf2 {[%clk 0:00:06]}  Re8 {[%clk 0:00:24]} 48. Kg2 {[%clk 0:00:06]}  Re5 {[%clk 0:00:23]} 49. Rd3 {[%clk 0:00:05]}  h3+ {[%clk 0:00:22]} 50. Kh1 {[%clk 0:00:05]}  Rfxf5 {[%clk 0:00:21]} 51. gxf5 {[%clk 0:00:05]}  Rxe4 {[%clk 0:00:20]} 52. Rd1 {[%clk 0:00:03]}  Re3 {[%clk 0:00:18]} 53. Rf1 {[%clk 0:00:03]}  Rd3 {[%clk 0:00:17]} 54. Qe2 {[%clk 0:00:03]}  Rd2 {[%clk 0:00:17]} 55. f6+ {[%clk 0:00:00]}  Kxf6 {[%clk 0:00:17]} 0-1


[Site "https://www.chess.com"]

[Event "Titled Tuesday Blitz May 30 Early 2023"]
[White "Narayanan.S.L"]
[Black "Bruedigam, Martin"]
[WhiteFideId "5058422"]
[BlackFideId "24608033"]
[WhiteElo "2563"]
[BlackElo "2331"]
[Result "1-0"]
[Round "02"]
[TimeControl "180+2"]
[Date "2023.05.30"]
[WhiteClock "0:00:53"]
[BlackClock "0:00:00"]

1. b3 {[%clk 0:03:00]}  e5 {[%clk 0:02:59]} 2. Bb2 {[%clk 0:03:01]}  Nc6 {[%clk 0:02:59]} 3. e3 {[%clk 0:03:01]}  Nf6 {[%clk 0:03:00]} 4. Bb5 {[%clk 0:03:01]}  Bd6 {[%clk 0:02:59]} 5. Ne2 {[%clk 0:03:01]}  a6 {[%clk 0:02:56]} 6. Bxc6 {[%clk 0:03:00]}  dxc6 {[%clk 0:02:57]} 7. d3 {[%clk 0:02:59]}  Be6 {[%clk 0:02:53]} 8. Ng3 {[%clk 0:03:00]}  Nd7 {[%clk 0:02:53]} 9. e4 {[%clk 0:02:59]}  Qe7 {[%clk 0:02:50]} 10. O-O {[%clk 0:02:59]}  f6 {[%clk 0:02:47]} 11. Nd2 {[%clk 0:02:58]}  Qf7 {[%clk 0:02:43]} 12. Kh1 {[%clk 0:02:58]}  h5 {[%clk 0:02:42]} 13. Nf5 {[%clk 0:02:54]}  Bc5 {[%clk 0:02:35]} 14. f4 {[%clk 0:02:53]}  Bxf5 {[%clk 0:02:24]} 15. exf5 {[%clk 0:02:52]}  O-O-O {[%clk 0:02:11]} 16. Ne4 {[%clk 0:02:50]}  Bd4 {[%clk 0:02:06]} 17. c3 {[%clk 0:02:33]}  Be3 {[%clk 0:01:57]} 18. fxe5 {[%clk 0:02:32]}  Nxe5 {[%clk 0:01:58]} 19. d4 {[%clk 0:02:32]}  Nd7 {[%clk 0:01:35]} 20. Qf3 {[%clk 0:02:30]}  Bh6 {[%clk 0:01:34]} 21. Bc1 {[%clk 0:02:25]}  Bxc1 {[%clk 0:01:26]} 22. Raxc1 {[%clk 0:02:26]}  h4 {[%clk 0:01:19]} 23. h3 {[%clk 0:02:25]}  Rde8 {[%clk 0:01:11]} 24. Rce1 {[%clk 0:02:25]}  Re7 {[%clk 0:00:54]} 25. Re2 {[%clk 0:02:11]}  Rhe8 {[%clk 0:00:54]} 26. Rfe1 {[%clk 0:02:11]}  Kd8 {[%clk 0:00:54]} 27. c4 {[%clk 0:01:48]}  g6 {[%clk 0:00:41]} 28. fxg6 {[%clk 0:01:35]}  Qxg6 {[%clk 0:00:42]} 29. Qf4 {[%clk 0:01:35]}  Qh5 {[%clk 0:00:16]} 30. Re3 {[%clk 0:01:08]}  f5 {[%clk 0:00:13]} 31. Ng5 {[%clk 0:01:04]}  Rxe3 {[%clk 0:00:11]} 32. Rxe3 {[%clk 0:01:05]}  Rxe3 {[%clk 0:00:10]} 33. Qxe3 {[%clk 0:01:06]}  Qg6 {[%clk 0:00:10]} 34. Ne6+ {[%clk 0:01:05]}  Kc8 {[%clk 0:00:10]} 35. Nf4 {[%clk 0:01:05]}  Qf7 {[%clk 0:00:09]} 36. Qe6 {[%clk 0:01:04]}  Qxe6 {[%clk 0:00:09]} 37. Nxe6 {[%clk 0:01:04]}  b5 {[%clk 0:00:06]} 38. Ng7 {[%clk 0:01:01]}  bxc4 {[%clk 0:00:04]} 39. bxc4 {[%clk 0:01:02]}  c5 {[%clk 0:00:04]} 40. dxc5 {[%clk 0:01:01]}  f4 {[%clk 0:00:03]} 41. Nf5 {[%clk 0:01:00]}  Nxc5 {[%clk 0:00:03]} 42. Nxh4 {[%clk 0:01:01]}  Ne4 {[%clk 0:00:03]} 43. Ng6 {[%clk 0:00:59]}  f3 {[%clk 0:00:03]} 44. gxf3 {[%clk 0:00:58]}  Nd2 {[%clk 0:00:03]} 45. h4 {[%clk 0:00:55]}  Kd7 {[%clk 0:00:03]} 46. h5 {[%clk 0:00:55]}  Ke6 {[%clk 0:00:00]} 47. h6 {[%clk 0:00:53]} 1-0


[Site "https://www.chess.com"]

[Event "Titled Tuesday Blitz May 30 Early 2023"]
[White "Dinu, Dumitru-Daniel"]
[Black "Dimitrov, Atanas"]
[WhiteFideId "1208403"]
[BlackFideId "2901315"]
[WhiteElo "2240"]
[BlackElo "2712"]
[Result "0-1"]
[Round "02"]
[TimeControl "180+2"]
[Date "2023.05.30"]
[WhiteClock "0:00:00"]
[BlackClock "0:00:08"]

1. e4 {[%clk 0:03:00]}  c5 {[%clk 0:02:59]} 2. b3 {[%clk 0:03:00]}  Nc6 {[%clk 0:02:59]} 3. Bb2 {[%clk 0:03:00]}  d6 {[%clk 0:02:58]} 4. Bb5 {[%clk 0:03:00]}  Bd7 {[%clk 0:02:57]} 5. f4 {[%clk 0:03:00]}  e6 {[%clk 0:02:53]} 6. Nf3 {[%clk 0:02:59]}  Nf6 {[%clk 0:02:52]} 7. Qe2 {[%clk 0:02:53]}  Be7 {[%clk 0:02:52]} 8. O-O {[%clk 0:02:52]}  O-O {[%clk 0:02:52]} 9. Bxc6 {[%clk 0:02:53]}  Bxc6 {[%clk 0:02:52]} 10. d3 {[%clk 0:02:53]}  Nd7 {[%clk 0:02:51]} 11. Nbd2 {[%clk 0:02:44]}  b5 {[%clk 0:02:49]} 12. Rae1 {[%clk 0:02:33]}  a5 {[%clk 0:02:42]} 13. d4 {[%clk 0:02:29]}  a4 {[%clk 0:02:30]} 14. d5 {[%clk 0:02:28]}  Bb7 {[%clk 0:02:27]} 15. Qxb5 {[%clk 0:02:26]}  Ba6 {[%clk 0:02:26]} 16. Qc6 {[%clk 0:02:22]}  Bxf1 {[%clk 0:02:09]} 17. Rxf1 {[%clk 0:02:22]}  exd5 {[%clk 0:02:06]} 18. Qxd5 {[%clk 0:02:19]}  axb3 {[%clk 0:02:04]} 19. axb3 {[%clk 0:02:19]}  Bf6 {[%clk 0:02:02]} 20. Bxf6 {[%clk 0:01:52]}  Nxf6 {[%clk 0:02:02]} 21. Qd3 {[%clk 0:01:51]}  Re8 {[%clk 0:01:55]} 22. Rd1 {[%clk 0:01:44]}  h6 {[%clk 0:01:50]} 23. h3 {[%clk 0:01:29]}  Qe7 {[%clk 0:01:42]} 24. e5 {[%clk 0:01:22]}  dxe5 {[%clk 0:01:41]} 25. fxe5 {[%clk 0:01:17]}  Nd7 {[%clk 0:01:26]} 26. Nc4 {[%clk 0:01:16]}  Rad8 {[%clk 0:01:26]} 27. Qe3 {[%clk 0:00:52]}  Nf8 {[%clk 0:01:18]} 28. Rxd8 {[%clk 0:00:50]}  Rxd8 {[%clk 0:01:19]} 29. Kf2 {[%clk 0:00:46]}  Ng6 {[%clk 0:01:01]} 30. g3 {[%clk 0:00:35]}  Qe6 {[%clk 0:00:58]} 31. Kg2 {[%clk 0:00:28]}  Qf5 {[%clk 0:00:53]} 32. Qe2 {[%clk 0:00:24]}  h5 {[%clk 0:00:52]} 33. Nd6 {[%clk 0:00:19]}  Qe6 {[%clk 0:00:46]} 34. Nc4 {[%clk 0:00:19]}  h4 {[%clk 0:00:38]} 35. Nxh4 {[%clk 0:00:18]}  Nxh4+ {[%clk 0:00:37]} 36. gxh4 {[%clk 0:00:19]}  Rd4 {[%clk 0:00:37]} 37. Qf2 {[%clk 0:00:16]}  Qg6+ {[%clk 0:00:34]} 38. Kh2 {[%clk 0:00:16]}  Rd1 {[%clk 0:00:24]} 39. Nd6 {[%clk 0:00:08]}  Qh5 {[%clk 0:00:17]} 40. Nf5 {[%clk 0:00:04]}  g6 {[%clk 0:00:08]} 41. Nd6 {[%clk 0:00:00]}  Qxe5+ {[%clk 0:00:08]} 0-1


[Site "https://www.chess.com"]

[Event "Titled Tuesday Blitz May 30 Early 2023"]
[White "Real_taiatai"]
[Black "Oleksiyenko, Mykhaylo"]
[BlackFideId "4152417"]
[WhiteElo "2384"]
[BlackElo "2551"]
[Result "0-1"]
[Round "02"]
[TimeControl "180+2"]
[Date "2023.05.30"]
[WhiteClock "0:02:02"]
[BlackClock "0:00:52"]

1. d4 {[%clk 0:03:00]}  d5 {[%clk 0:02:59]} 2. Nf3 {[%clk 0:03:01]}  Nf6 {[%clk 0:02:59]} 3. c4 {[%clk 0:03:01]}  e6 {[%clk 0:02:58]} 4. Nc3 {[%clk 0:03:01]}  Nbd7 {[%clk 0:02:58]} 5. e3 {[%clk 0:03:00]}  b6 {[%clk 0:02:55]} 6. b3 {[%clk 0:02:59]}  Bb7 {[%clk 0:02:55]} 7. Bb2 {[%clk 0:02:59]}  a6 {[%clk 0:02:53]} 8. Be2 {[%clk 0:02:59]}  Bd6 {[%clk 0:02:52]} 9. O-O {[%clk 0:03:00]}  O-O {[%clk 0:02:52]} 10. Rc1 {[%clk 0:03:00]}  Ne4 {[%clk 0:02:52]} 11. Bd3 {[%clk 0:02:51]}  Qe7 {[%clk 0:02:45]} 12. Ne2 {[%clk 0:02:50]}  Rfd8 {[%clk 0:02:14]} 13. Qc2 {[%clk 0:02:47]}  Rac8 {[%clk 0:02:06]} 14. Ne5 {[%clk 0:02:40]}  Bxe5 {[%clk 0:01:42]} 15. dxe5 {[%clk 0:02:41]}  Ndc5 {[%clk 0:01:42]} 16. Bxe4 {[%clk 0:02:27]}  dxe4 {[%clk 0:01:14]} 17. Ba3 {[%clk 0:02:26]}  Qg5 {[%clk 0:01:10]} 18. Bxc5 {[%clk 0:02:25]}  bxc5 {[%clk 0:01:10]} 19. Rcd1 {[%clk 0:02:09]}  Qxe5 {[%clk 0:01:08]} 20. Rd2 {[%clk 0:02:09]}  Rd6 {[%clk 0:01:07]} 21. Rfd1 {[%clk 0:02:09]}  Rcd8 {[%clk 0:01:06]} 22. Nc3 {[%clk 0:02:08]}  Rd3 {[%clk 0:00:57]} 23. Na4 {[%clk 0:02:06]}  Rxd2 {[%clk 0:00:54]} 24. Rxd2 {[%clk 0:02:02]}  Qa1+ {[%clk 0:00:52]} 0-1


[Site "https://www.chess.com"]

[Event "Titled Tuesday Blitz May 30 Early 2023"]
[White "Girya, Olga"]
[Black "Llanos, Guillermo"]
[WhiteFideId "4195752"]
[BlackFideId "100358"]
[WhiteElo "2263"]
[BlackElo "2225"]
[Result "0-1"]
[Round "02"]
[TimeControl "180+2"]
[Date "2023.05.30"]
[WhiteClock "0:00:00"]
[BlackClock "0:00:53"]

1. d4 {[%clk 0:03:00]}  f5 {[%clk 0:02:58]} 2. g3 {[%clk 0:03:00]}  Nf6 {[%clk 0:02:57]} 3. Bg2 {[%clk 0:03:00]}  e6 {[%clk 0:02:57]} 4. c4 {[%clk 0:02:54]}  c6 {[%clk 0:02:57]} 5. Bf4 {[%clk 0:02:52]}  d6 {[%clk 0:02:52]} 6. Nc3 {[%clk 0:02:50]}  Nbd7 {[%clk 0:02:51]} 7. Nf3 {[%clk 0:02:50]}  Be7 {[%clk 0:02:49]} 8. O-O {[%clk 0:02:48]}  O-O {[%clk 0:02:48]} 9. Re1 {[%clk 0:02:47]}  Ne4 {[%clk 0:02:39]} 10. Nxe4 {[%clk 0:02:27]}  fxe4 {[%clk 0:02:39]} 11. Nd2 {[%clk 0:02:28]}  d5 {[%clk 0:02:30]} 12. f3 {[%clk 0:02:28]}  Qb6 {[%clk 0:02:20]} 13. fxe4 {[%clk 0:02:15]}  e5 {[%clk 0:02:16]} 14. c5 {[%clk 0:01:15]}  Qxb2 {[%clk 0:02:15]} 15. Nb3 {[%clk 0:00:42]}  exf4 {[%clk 0:02:03]} 16. exd5 {[%clk 0:00:43]}  cxd5 {[%clk 0:01:52]} 17. Bxd5+ {[%clk 0:00:42]}  Kh8 {[%clk 0:01:52]} 18. Qd3 {[%clk 0:00:32]}  Nf6 {[%clk 0:01:43]} 19. Bf3 {[%clk 0:00:18]}  fxg3 {[%clk 0:01:36]} 20. hxg3 {[%clk 0:00:19]}  Qa3 {[%clk 0:01:31]} 21. e4 {[%clk 0:00:12]}  Ng4 {[%clk 0:01:04]} 22. Re2 {[%clk 0:00:04]}  Qa4 {[%clk 0:01:01]} 23. Rd1 {[%clk 0:00:03]}  Qe8 {[%clk 0:01:00]} 24. Bg2 {[%clk 0:00:01]}  Qg6 {[%clk 0:00:56]} 25. e5 {[%clk 0:00:01]}  Bf5 {[%clk 0:00:55]} 26. Be4 {[%clk 0:00:01]}  Bxe4 {[%clk 0:00:53]} 27. Qxe4 {[%clk 0:00:01]}  Qxe4 {[%clk 0:00:53]} 28. Rxe4 {[%clk 0:00:01]}  Nf2 {[%clk 0:00:53]} 29. Rf1 {[%clk 0:00:00]}  Nxe4 {[%clk 0:00:53]} 0-1


[Site "https://www.chess.com"]

[Event "Titled Tuesday Blitz May 30 Early 2023"]
[White "Schnaider, Ilan"]
[Black "Uzcategui Rodriguez, Alejandro"]
[WhiteFideId "169013"]
[BlackFideId "3903400"]
[WhiteElo "2224"]
[BlackElo "2252"]
[Result "0-1"]
[Round "02"]
[TimeControl "180+2"]
[Date "2023.05.30"]
[WhiteClock "0:00:00"]
[BlackClock "0:00:27"]

1. e4 {[%clk 0:03:00]}  e6 {[%clk 0:02:54]} 2. d4 {[%clk 0:03:00]}  d5 {[%clk 0:02:54]} 3. Nd2 {[%clk 0:03:00]}  Nf6 {[%clk 0:02:54]} 4. e5 {[%clk 0:03:00]}  Nfd7 {[%clk 0:02:55]} 5. Bd3 {[%clk 0:02:59]}  c5 {[%clk 0:02:55]} 6. c3 {[%clk 0:02:59]}  Nc6 {[%clk 0:02:56]} 7. Ne2 {[%clk 0:02:58]}  cxd4 {[%clk 0:02:56]} 8. cxd4 {[%clk 0:02:59]}  f6 {[%clk 0:02:57]} 9. exf6 {[%clk 0:02:59]}  Nxf6 {[%clk 0:02:57]} 10. Nf3 {[%clk 0:02:55]}  Bd6 {[%clk 0:02:57]} 11. O-O {[%clk 0:02:55]}  Qc7 {[%clk 0:02:58]} 12. h3 {[%clk 0:02:52]}  O-O {[%clk 0:02:57]} 13. Bg5 {[%clk 0:02:51]}  Bd7 {[%clk 0:02:53]} 14. Bh4 {[%clk 0:02:51]}  Nh5 {[%clk 0:02:46]} 15. Ng5 {[%clk 0:02:45]}  h6 {[%clk 0:02:41]} 16. Nh7 {[%clk 0:02:19]}  Rf5 {[%clk 0:02:34]} 17. Bxf5 {[%clk 0:01:59]}  exf5 {[%clk 0:02:32]} 18. Nc3 {[%clk 0:01:59]}  Nf4 {[%clk 0:02:28]} 19. Nb5 {[%clk 0:01:42]}  Qb8 {[%clk 0:02:27]} 20. Nf6+ {[%clk 0:01:28]}  gxf6 {[%clk 0:02:27]} 21. Nxd6 {[%clk 0:01:20]}  Qxd6 {[%clk 0:02:24]} 22. Bg3 {[%clk 0:01:21]}  Re8 {[%clk 0:02:20]} 23. Re1 {[%clk 0:00:35]}  Re4 {[%clk 0:01:58]} 24. Rxe4 {[%clk 0:00:26]}  fxe4 {[%clk 0:01:55]} 25. Qd2 {[%clk 0:00:24]}  Nxd4 {[%clk 0:01:32]} 26. Bxf4 {[%clk 0:00:20]}  Qxf4 {[%clk 0:01:07]} 27. Qxd4 {[%clk 0:00:20]}  Qg5 {[%clk 0:01:05]} 28. Rd1 {[%clk 0:00:20]}  Be6 {[%clk 0:01:01]} 29. Kf1 {[%clk 0:00:18]}  b6 {[%clk 0:01:01]} 30. Qc3 {[%clk 0:00:13]}  Qf4 {[%clk 0:00:56]} 31. Rc1 {[%clk 0:00:11]}  Qe5 {[%clk 0:00:30]} 32. Qc6 {[%clk 0:00:08]}  e3 {[%clk 0:00:27]} 33. Qe8+ {[%clk 0:00:07]}  Kg7 {[%clk 0:00:27]} 34. fxe3 {[%clk 0:00:02]}  d4 {[%clk 0:00:27]} 35. exd4 {[%clk 0:00:02]}  Bc4+ {[%clk 0:00:27]} 36. Rxc4 {[%clk 0:00:01]}  Qxe8 {[%clk 0:00:28]} 37. Rc7+ {[%clk 0:00:02]}  Kg6 {[%clk 0:00:28]} 38. Rxa7 {[%clk 0:00:02]}  Qb5+ {[%clk 0:00:28]} 39. Kg1 {[%clk 0:00:02]}  Qxb2 {[%clk 0:00:29]} 40. Rd7 {[%clk 0:00:02]}  Qxa2 {[%clk 0:00:28]} 41. Rd6 {[%clk 0:00:02]}  b5 {[%clk 0:00:26]} 42. Rb6 {[%clk 0:00:02]}  Qc4 {[%clk 0:00:24]} 43. Rd6 {[%clk 0:00:01]}  b4 {[%clk 0:00:24]} 44. Kh1 {[%clk 0:00:01]}  b3 {[%clk 0:00:24]} 45. Rd8 {[%clk 0:00:01]}  b2 {[%clk 0:00:24]} 46. Rb8 {[%clk 0:00:02]}  Qc1+ {[%clk 0:00:24]} 47. Kh2 {[%clk 0:00:02]}  b1=Q {[%clk 0:00:25]} 48. Rxb1 {[%clk 0:00:03]}  Qxb1 {[%clk 0:00:26]} 49. d5 {[%clk 0:00:04]}  Qb8+ {[%clk 0:00:26]} 50. d6 {[%clk 0:00:00]}  Qxd6+ {[%clk 0:00:27]} 0-1


[Site "https://www.chess.com"]

[Event "Titled Tuesday Blitz May 30 Early 2023"]
[White "De Souza, Cristiano Gomes"]
[Black "iHateNAJDORF"]
[WhiteFideId "2151758"]
[WhiteElo "2068"]
[BlackElo "2598"]
[Result "0-1"]
[Round "02"]
[TimeControl "180+2"]
[Date "2023.05.30"]
[WhiteClock "0:01:02"]
[BlackClock "0:00:03"]

1. d4 {[%clk 0:02:59]}  Nf6 {[%clk 0:02:59]} 2. c4 {[%clk 0:02:57]}  d6 {[%clk 0:02:57]} 3. Nf3 {[%clk 0:02:57]}  g6 {[%clk 0:02:58]} 4. Nc3 {[%clk 0:02:57]}  Bg7 {[%clk 0:02:58]} 5. e4 {[%clk 0:02:57]}  O-O {[%clk 0:02:58]} 6. Be2 {[%clk 0:02:58]}  e5 {[%clk 0:02:57]} 7. O-O {[%clk 0:02:58]}  Nc6 {[%clk 0:02:57]} 8. d5 {[%clk 0:02:59]}  Ne7 {[%clk 0:02:57]} 9. Ne1 {[%clk 0:03:00]}  Nd7 {[%clk 0:02:56]} 10. Be3 {[%clk 0:03:00]}  f5 {[%clk 0:02:56]} 11. f3 {[%clk 0:03:00]}  f4 {[%clk 0:02:57]} 12. Bf2 {[%clk 0:03:00]}  g5 {[%clk 0:02:55]} 13. Nb5 {[%clk 0:03:01]}  a5 {[%clk 0:02:10]} 14. Na7 {[%clk 0:03:00]}  Rxa7 {[%clk 0:02:06]} 15. Bxa7 {[%clk 0:02:58]}  b6 {[%clk 0:02:07]} 16. Nd3 {[%clk 0:02:58]}  Ba6 {[%clk 0:02:04]} 17. a3 {[%clk 0:02:47]}  Qa8 {[%clk 0:02:00]} 18. Bxb6 {[%clk 0:02:47]}  cxb6 {[%clk 0:01:56]} 19. b4 {[%clk 0:02:46]}  Bxc4 {[%clk 0:01:51]} 20. Rc1 {[%clk 0:02:39]}  b5 {[%clk 0:01:34]} 21. bxa5 {[%clk 0:02:35]}  Qxa5 {[%clk 0:01:29]} 22. a4 {[%clk 0:02:33]}  Bxd3 {[%clk 0:01:20]} 23. Bxd3 {[%clk 0:02:32]}  bxa4 {[%clk 0:01:18]} 24. Ra1 {[%clk 0:02:30]}  Nc5 {[%clk 0:01:18]} 25. Bc4 {[%clk 0:02:28]}  Rb8 {[%clk 0:01:18]} 26. Rf2 {[%clk 0:02:27]}  Nc8 {[%clk 0:01:16]} 27. Rfa2 {[%clk 0:02:22]}  Rb4 {[%clk 0:01:16]} 28. Be2 {[%clk 0:02:18]}  Nb6 {[%clk 0:01:16]} 29. g3 {[%clk 0:02:16]}  g4 {[%clk 0:01:13]} 30. Kg2 {[%clk 0:02:13]}  gxf3+ {[%clk 0:01:11]} 31. Bxf3 {[%clk 0:02:13]}  Nxe4 {[%clk 0:01:10]} 32. Qc2 {[%clk 0:02:03]}  Nc5 {[%clk 0:00:49]} 33. Rb1 {[%clk 0:01:57]}  e4 {[%clk 0:00:43]} 34. Bg4 {[%clk 0:01:55]}  f3+ {[%clk 0:00:42]} 35. Kh3 {[%clk 0:01:55]}  Nxd5 {[%clk 0:00:31]} 36. Rxb4 {[%clk 0:01:47]}  Qxb4 {[%clk 0:00:32]} 37. Qf2 {[%clk 0:01:36]}  Nf6 {[%clk 0:00:23]} 38. Bf5 {[%clk 0:01:32]}  Nd3 {[%clk 0:00:19]} 39. Qa7 {[%clk 0:01:31]}  h5 {[%clk 0:00:07]} 40. Bg6 {[%clk 0:01:28]}  d5 {[%clk 0:00:04]} 41. Rxa4 {[%clk 0:01:27]}  Qf8 {[%clk 0:00:03]} 42. Qb6 {[%clk 0:01:26]}  Qc8+ {[%clk 0:00:03]} 43. Kh4 {[%clk 0:01:02]}  Qg4# {[%clk 0:00:03]} 0-1


[Site "https://www.chess.com"]